Workbook

Sheet 심의조서 총괄표
B1: 2021년도 제2회 예천군 보조금심의위원회 대상자선정 심의조서 총괄표
L2: (단위 : 천원)
B3: 부서명 | C3: 보 조 사 업 자 | D3: 보 조 사 업 명 | E3: 과목명 | F3: 사 업 내 용 | G3: 2020년 지원액 | H3: 계 | I3: 보조금 | J3: 자부담 | K3: 1차 (해당부서) | L3: 2차 (예산부서) | M3: 3차 (위원회)
B4: 합계 | D4: 81건 | G4: =SUM(G5,G10,G12,G18,G24,G29,G98,G116,G118) -> 1,772,043 | H4: =SUM(H5,H10,H12,H18,H24,H29,H98,H116,H118) -> 9,369,579 | I4: 4,768,121 | J4: 4,601,458 | K4: 4,768,121 | L4: =K4 -> 4,768,121 | M4: =L4 -> 4,768,121
B5: 주민복지실 소계 | D5: =SUBTOTAL(103,D6:D9)&"건" -> 4건 | G5: =SUM(G6:G9) -> 33,613 | H5: =SUM(H6:H9) -> 166,045 | I5: =SUM(I6:I9) -> 149,934 | J5: =SUM(J6:J9) -> 16,111 | K5: =I5 -> 149,934 | L5: 149,934 | M5: =L5 -> 149,934
B6: 주민복지실 | C6: 예천군 등록 어린이집 22개소 | D6: 어린이집환경개선비 지원사업 | E6: 사회복지사업보조 | F6: 어린이집 환경개선 22개소 | G6: 21,993 | H6: =SUM(I6:J6) -> 17,654 | I6: 14,124 | J6: 3,530 | K6: =I6 -> 14,124 | L6: 14,124 | M6: =L6 -> 14,124
B7: 주민복지실 | C7: 예천군 등록 경로당 1개소 | D7: 경로당 신축사업 | E7: 민간자본사업보조 | F7: 신축 100,000,000원 * 1개소 | H7: =SUM(I7:J7) -> 100,000 | I7: 100,000 | K7: =I7 -> 100,000 | L7: =K7 -> 100,000 | M7: 100,000
B8: 주민복지실 | C8: 예천군 등록 경로당 8개소 | D8: 경로당 보수사업 | E8: 민간자본사업보조 | F8: 200,000,000원 * 1식 | G8: 10,000 | H8: =SUM(I8:J8) -> 39,431 | I8: 27,580 | J8: 11,851 | K8: =I8 -> 27,580 | L8: =K8 -> 27,580 | M8: 27,580
B9: 주민복지실 | C9: 예천군 등록 경로당 6개소 | D9: 경로당 활성화 물품 구입 | E9: 민간자본사업보조 | F9: 100,000,000원 * 1식 | G9: 1,620 | H9: =SUM(I9:J9) -> 8,960 | I9: 8,230 | J9: 730 | K9: =I9 -> 8,230 | L9: 8,230 | M9: 8,230
B10: 새마을경제과 소계 | D10: =SUBTOTAL(103,D11)&"건" -> 1건 | G10: =SUM(G11) -> 45,000 | H10: =SUM(H11) -> 45,000 | I10: =SUM(I11) -> 45,000 | K10: =I10 -> 45,000 | L10: =K10 -> 45,000 | M10: =L10 -> 45,000
B11: 새마을경제과 | C11: 경북도립대학교 창업보육센터 | D11: 경북청년예비창업지원사업 | E11: 민간경상사업보조 | F11: 청년창업활동비 및 창업교육 지원 | G11: 45,000 | H11: 45,000 | I11: 45,000 | K11: 45,000 | L11: 45,000 | M11: =L11 -> 45,000
B12: 종합민원과 소계 | D12: =SUBTOTAL(103,D13:D17)&"건" -> 5건 | G12: =SUM(G13:G17) -> 50,000 | H12: =SUM(H13:H17) -> 92,000 | I12: =SUM(I13:I17) -> 90,000 | J12: 2,000 | K12: =I12 -> 90,000 | L12: 90,000 | M12: =L12 -> 90,000
B13: 종합민원과 | C13: (사)한국외식업중앙회경상북도지회예천군지부 | D13: 위생업소 현장방문 친절교육 | E13: 민간경상사업보조 | F13: 현장방문 친절교육 실시 | G13: 20,000 | H13: 20,000 | I13: 20,000 | K13: 20,000 | L13: 20,000 | M13: =L13 -> 20,000
B14: 종합민원과 | C14: (사)한국외식업중앙회경상북도지회예천군지부 | D14: 식중독예방 및 음식문화개선 사업 | E14: 민간경상사업보조 | F14: 모바일웹 홈페이지 관리 식중독 예방 및 음식문화개선 홍보 식문화개선 식단전시회 | G14: 20,000 | H14: 20,000 | I14: 20,000 | K14: 20,000 | L14: 20,000 | M14: =L14 -> 20,000
B15: 종합민원과 | C15: (사)한국외식업중앙회경상북도지회예천군지부 | D15: 외식업소 영업주 선진외식 문화체험 | E15: 민간경상사업보조 | F15: 문화체험, 차량임차 등 | G15: 10,000 | H15: 10,000 | I15: 10,000 | K15: 10,000 | L15: 10,000 | M15: 10,000
B16: 종합민원과 | C16: (사)한국외식업중앙회경상북도지회예천군지부 | D16: 음식문화 개선을 위한 음식점 안심접시 등 지원 | E16: 민간경상사업보조 | F16: 안심접시, 국자(집게) 등 지원 | H16: 30,000 | I16: 30,000 | K16: 30,000 | L16: 30,000 | M16: 30,000
B17: 종합민원과 | C17: (사)대한미용사회 예천군지부 | D17: 미용 아카데미 운영 | E17: 민간경상사업보조 | F17: 미용교육 실시 (강사료, 재료비 지원) | H17: 12,000 | I17: 10,000 | J17: 2,000 | K17: 10,000 | L17: 10,000 | M17: 10,000
B18: 문화관광과 소계 | D18: =SUBTOTAL(103,D19:D23)&"건" -> 5건 | G18: =SUM(G19:G23) -> 119,000 | H18: =SUM(H19:H23) -> 130,400 | I18: 120,000 | J18: 10,400 | K18: =I18 -> 120,000 | L18: 120,000 | M18: =L18 -> 120,000
B19: 문화관광과 | C19: (사)한국예총예천지회 | D19: 군청사 갤러리 전시시원 | E19: 민간경상사업보조 | F19: 전시운영, 작품설치철거, 기획전시 등 | G19: 25,000 | H19: 25,000 | I19: 25,000 | K19: 25,000 | L19: 25,000 | M19: =L19 -> 25,000
B20: 문화관광과 | C20: (사)한국예총예천지회 | D20: 예천우리소리축제 지원 | E20: 민간행사사업보조 | F20: 경연대회 예심, 축하공연, 홍보 등 | G20: 20,000 | H20: 20,000 | I20: 20,000 | K20: 20,000 | L20: 20,000 | M20: =L20 -> 20,000
B21: 문화관광과 | C21: (사)한국예총예천지회 | D21: 우리민요활동 지원 | E21: 민간경상사업보조 | F21: 공연, 의상소품대여 등 | G21: 10,000 | H21: 10,000 | I21: 10,000 | K21: 10,000 | L21: 10,000 | M21: =L21 -> 10,000
B22: 문화관광과 | C22: 예천군기독교연합회 외 1 | D22: 종무활동 지원 | E22: 민간경상사업보조 | F22: 종무활동 지원 | G22: 55,000 | H22: 65,000 | I22: 55,000 | J22: 10,000 | K22: 55,000 | L22: 55,000 | M22: 55,000
B23: 문화관광과 | C23: 동일스위트더파크 작은도서관 외 8 | D23: 작은도서관 도서구입 지원 사업 | E23: 민간경상사업보조 | F23: 도서 구입 | G23: 9,000 | H23: 10,400 | I23: 10,000 | J23: 400 | K23: 10,000 | L23: 10,000 | M23: 10,000
B24: 환경관리과 소계 | D24: =SUBTOTAL(103,D25:D28)&"건" -> 4건 | H24: =SUM(H25:H28) -> 886,958 | I24: =SUM(I25:I28) -> 426,954 | J24: 460,004 | K24: 426,954 | L24: =I24 -> 426,954 | M24: =L24 -> 426,954
B25: 환경관리과 | C25: 호명면 윤** 외 9인 | D25: 가정용 저녹스보일러 설치 지원사업 | E25: 민간자본사업보조 | F25: 일반 가구 : 200천원 * 9가구 | H25: 8,878 | I25: 2,000 | J25: 6,878 | K25: 2,000 | L25: =I25 -> 2,000 | M25: =L25 -> 2,000
B26: 환경관리과 | C26: 풍양면 최** 외 99인 | D26: 매연저감장치 부착 지원 | E26: 민간자본사업보조 | F26: 1종복합소형 2,992천원*12대 1종복합중형 4,770천원*8대 | H26: 81,260 | I26: 74,064 | J26: 7,196 | K26: 74,064 | L26: =I26 -> 74,064 | M26: =L26 -> 74,064
B27: 환경관리과 | C27: 감천면 이** 외 30인 | D27: LPG 1톤 화물차 구매지원 | E27: 민간자본사업보조 | F27: 4,000천원*20대 | H27: 80,000 | I27: 80,000 | K27: 80,000 | L27: =I27 -> 80,000 | M27: 80,000
B28: 환경관리과 | C28: 예천읍 송** 외 14인 | D28: 전기자동차 민간보급사업 | E28: 민간자본사업보조 | F28: 전기승용차 : 14,000천원 * 5대 전기승용차 : 13,120천원 * 1대 전기승용차 : 11,770천원 * 1대 전기화물차 : 22,000천원 * 8대 | G28: 0 | H28: 716,820 | I28: 270,890 | J28: 445,930 | K28: 270,890 | L28: =K28 -> 270,890 | M28: 270,890
B29: 농정과 소계 | D29: 41건 (종목 : 68건) | G29: =SUM(G30:G97) -> 1,416,326 | H29: =SUM(H30:H97) -> 6,903,676 | I29: =SUM(I30:I97) -> 3,260,083 | J29: =SUM(J30:J97) -> 3,643,593 | K29: =SUM(K30:K97) -> 3,260,083 | L29: =K29 -> 3,260,083 | M29: =L29 -> 3,260,083
B30: 농정과 | C30: 은풍면 조고리길 *** 이** 외 3명 | D30: 다목적 농가형 저온저장고 지원 | E30: 민간자본사업보조 | F30: 20,000천원*1동*50% | H30: 80,000 | I30: 40,000 | J30: 40,000 | K30: 40,000 | L30: =K30 -> 40,000 | M30: =L30 -> 40,000
B31: 농정과 | C31: 예천읍 용문경천로 **** 김** 외 9명 | D31: FTA대응 대체과수 명품화 지원 | E31: 민간자본사업보조 | F31: 80,600천원*1식*50% | G31: 66,532 | H31: 80,600 | I31: 40,300 | J31: 40,300 | K31: 40,300 | L31: =K31 -> 40,300 | M31: =L31 -> 40,300
B32: 농정과 | C32: 효자면 도효자로 ****-** 이** 외 76명 | D32: 과수 생력화장비 지원 | E32: 민간자본사업보조 | F32: 256,600천원*1식*50% 460,000천원*1식*25% | G32: 9,611 | H32: 716,600 | I32: 243,300 | J32: 473,300 | K32: 243,300 | L32: 243,300 | M32: 243,300
B33: 농정과 | C33: 예천읍 노상리길 ** 권** 외 451명 | D33: 과실생산비 절감 및 품질제고 지원 | E33: 민간자본사업보조 | F33: 256,332천원*1식*50% | G33: 108,663 | H33: 256,332 | I33: 128,166 | J33: 128,166 | K33: 128,166 | L33: 128,166 | M33: 128,166
B34: 농정과 | C34: 지보면 신풍리 *** 윤** 외 6명 | D34: 자두재배농가 경쟁력 제고 지원 | E34: 민간자본사업보조 | F34: 20,000천원*1식*50% | G34: 2,278 | H34: 20,000 | I34: 10,000 | J34: 10,000 | K34: 10,000 | L34: 10,000 | M34: 10,000
B35: 농정과 | C35: 예천읍 노상리길 ** 권** 외 11명 | D35: 포도비가림 재배시설 지원 | E35: 민간자본사업보조 | F35: 140,800천원*1식*50% | G35: 7,783 | H35: 140,800 | I35: 70,400 | J35: 70,400 | K35: 70,400 | L35: 70,400 | M35: 70,400
B36: 농정과 | C36: 지보면 매창길 ***-** 안** 외 15명 | D36: 화훼생산시설 경쟁력 제고 지원 | E36: 민간자본사업보조 | F36: 82,000천원*1식*50% | G36: 69,668 | H36: 82,000 | I36: 41,000 | J36: 41,000 | K36: 41,000 | L36: 41,000 | M36: 41,000
B37: 농정과 | C37: 지보면 신풍로 ** 이** 외 3명 | D37: 화훼직거래 활성화 지원 | E37: 민간자본사업보조 | F37: 17,000천원*1식*50% | G37: 20,829 | H37: 17,000 | I37: 8,500 | J37: 8,500 | K37: 8,500 | L37: 8,500 | M37: 8,500
B38: 농정과 | C38: 예천읍 대심*길 **-**, ***호 이** 외 17명 | D38: 원예산업육성 지원(비가림하우스) | E38: 민간자본사업보조 | F38: 2,300천원*20동*50% | G38: 44,521 | H38: 46,000 | I38: 23,000 | J38: 23,000 | K38: 23,000 | L38: 23,000 | M38: 23,000
B39: 농정과 | C39: 예천읍 왕신길 ***-** 권** 외 27명 | D39: 원예산업육성 지원(점적관수) | E39: 민간자본사업보조 | F39: 1천원*30,400㎡*50% | G39: 39,321 | H39: 30,400 | I39: 15,200 | J39: 15,200 | K39: 15,200 | L39: 15,200 | M39: 15,200
B40: 농정과 | C40: 예천읍 양궁로 *** 김** 외 17명 | D40: 원예산업육성 지원(스프링클러) | E40: 민간자본사업보조 | F40: 1천원*17,000㎡*50% | G40: 496 | H40: 17,000 | I40: 8,500 | J40: 8,500 | K40: 8,500 | L40: 8,500 | M40: 8,500
B41: 농정과 | C41: 예천읍 용산길 **-* 박** 외 1명 | D41: 원예산업육성 지원(마늘건가시설) | E41: 민간자본사업보조 | F41: 120천원*90㎡*50% | H41: 10,800 | I41: 5,400 | J41: 5,400 | K41: 5,400 | L41: 5,400 | M41: 5,400
B42: 농정과 | C42: 예천읍 남산공원길 *-* 이** 외 17명 | D42: 원예산업육성 지원(노후하우스기자재) | E42: 민간자본사업보조 | F42: 10천원*1900개*50% | G42: 11,802 | H42: 19,000 | I42: 9,500 | J42: 9,500 | K42: 9,500 | L42: 9,500 | M42: 9,500
B43: 농정과 | C43: 예천읍 지내길 **-* 김** 외 39명 | D43: 원예산업육성 지원(이동식저온저장고) | E43: 민간자본사업보조 | F43: 5,000천원*40동*50% | G43: 7,357 | H43: 200,000 | I43: 100,000 | J43: 100,000 | K43: 100,000 | L43: 100,000 | M43: 100,000
B44: 농정과 | C44: 예천읍 남읍내길 *-*** 안** 외 1명 | D44: 원예산업육성 지원(탄산가스발생기) | E44: 민간자본사업보조 | F44: 1,500천원*2식*50% | G44: 5,000 | H44: 3,000 | I44: 1,500 | J44: 1,500 | K44: 1,500 | L44: 1,500 | M44: 1,500
B45: 농정과 | C45: 예천읍 갈구*길 *** 이** | D45: 원예산업육성 지원(스마트팜) | E45: 민간자본사업보조 | F45: 10,000천원*1동*50% | H45: 10,000 | I45: 5,000 | J45: 5,000 | K45: 5,000 | L45: 5,000 | M45: 5,000
B46: 농정과 | C46: 감천면 도평길 ** 배** 외 6명 | D46: 원예산업육성 지원(관수관비) | E46: 민간자본사업보조 | F46: 1천원*6,980㎡*50% | G46: 23,777 | H46: 6,980 | I46: 3,490 | J46: 3,490 | K46: 3,490 | L46: 3,490 | M46: 3,490
B47: 농정과 | C47: 용궁면 무이서당길 *** 엄** | D47: 원예산업육성 지원(열풍기) | E47: 민간자본사업보조 | F47: 1,000천원*2대*50% | H47: 2,000 | I47: 1,000 | J47: 1,000 | K47: 1,000 | L47: 1,000 | M47: 1,000
B48: 농정과 | C48: 용궁면 향석길 *-** 이** 외 14명 | D48: 원예산업육성 지원(솜이불필름) | E48: 민간자본사업보조 | F48: 160천원*167롤*50% | H48: 26,720 | I48: 13,360 | J48: 13,360 | K48: 13,360 | L48: 13,360 | M48: 13,360
B49: 농정과 | C49: 예천읍 중앙로**,***호 김** 외 36명 | D49: 소득작목육성 지원(이동식저온저장고) | E49: 민간자본사업보조 | F49: 5,000천원*37동*50% | G49: 11,313 | H49: 185,000 | I49: 92,500 | J49: 92,500 | K49: 92,500 | L49: 92,500 | M49: 92,500
B50: 농정과 | C50: 예천읍 왕신길 ***-* 권** 외 21명 | D50: 소득작목육성 지원(장기성PO필름) | E50: 민간자본사업보조 | F50: 3천원*16,900㎡*50% | G50: 76,431 | H50: 50,700 | I50: 25,350 | J50: 25,350 | K50: 25,350 | L50: 25,350 | M50: 25,350
B51: 농정과 | C51: 예천읍 왕신길 *** 이** 외 9명 | D51: 소득작목육성 지원(내부공기순환팬) | E51: 민간자본사업보조 | F51: 140천원*60개*50% | G51: 56,845 | H51: 8,400 | I51: 4,200 | J51: 4,200 | K51: 4,200 | L51: 4,200 | M51: 4,200
B52: 농정과 | C52: 용문면 큰맛질길 **-* 박** 외 47명 | D52: 소득작목육성 지원(자동개폐기) | E52: 민간자본사업보조 | F52: 800천원*54동*50% | G52: 178,714 | H52: 43,200 | I52: 21,600 | J52: 21,600 | K52: 21,600 | L52: 21,600 | M52: 21,600
B53: 농정과 | C53: 용문면 양갓길 * 권** 외 1명 | D53: 소득작목육성 지원(고설재배시설) | E53: 민간자본사업보조 | F53: 30천원*1,320㎡*50% | G53: 8,243 | H53: 39,600 | I53: 19,800 | J53: 19,800 | K53: 19,800 | L53: 19,800 | M53: 19,800
B54: 농정과 | C54: 호명면 신촌길 **-** 박** 외 1명 | D54: 소득작목육성 지원(내재해형하우스) | E54: 민간자본사업보조 | F54: 22천원*1,320㎡*50% | H54: 29,040 | I54: 14,520 | J54: 14,520 | K54: 14,520 | L54: 14,520 | M54: 14,520
B55: 농정과 | C55: 호명면 담암길 ** 장** 외 1명 | D55: 소득작목육성 지원(무인방제기) | E55: 민간자본사업보조 | F55: 4,000천원*3대*50% | G55: 700 | H55: 12,000 | I55: 6,000 | J55: 6,000 | K55: 6,000 | L55: 6,000 | M55: 6,000
B56: 농정과 | C56: 예천읍 대창학교길 **-* 이** 외 14명 | D56: 시설원예현대화 지원(내재해형하우스) | E56: 민간자본사업보조 | F56: 22천원*10,890㎡*60% | G56: 93,111 | H56: 239,580 | I56: 143,748 | J56: 95,832 | K56: 143,748 | L56: 143,748 | M56: 143,748
B57: 농정과 | C57: 호명면 원곡길 *** 김** 외 6명 | D57: 시설원예현대화 지원(다겹보온커튼) | E57: 민간자본사업보조 | F57: 11천원*5,000㎡*50% | G57: 34,504 | H57: 55,000 | I57: 27,500 | J57: 27,500 | K57: 27,500 | L57: 27,500 | M57: 27,500
B58: 농정과 | C58: 효자면 무장길 *** 최** 외 10명 | D58: 고추비가림재배시설지원(내재해형하우스) | E58: 민간자본사업보조 | F58: 22천원*9,740㎡*60% | G58: 17,650 | H58: 214,280 | I58: 128,568 | J58: 85,712 | K58: 128,568 | L58: 128,568 | M58: 128,568
B59: 농정과 | C59: 예천읍 상설시장*길 **, ***호 전** 외 8명 | D59: 농업에너지이용효율화 지원(자동보온덮개) | E59: 민간자본사업보조 | F59: 2.5천원*16,260㎡*50% | H59: 40,650 | I59: 20,325 | J59: 20,325 | K59: 20,325 | L59: 20,325 | M59: 20,325
B60: 농정과 | C60: 보문면 옥계천로 ***-** 정** 외 3명 | D60: 농업에너지이용효율화 지원(다겹보온커튼) | E60: 민간자본사업보조 | F60: 11천원*6,700㎡*50% | G60: 26,136 | H60: 73,700 | I60: 36,850 | J60: 36,850 | K60: 36,850 | L60: 36,850 | M60: 36,850
B61: 농정과 | C61: 감천면 도평길 ** 김** 외 8명 | D61: 인삼생약산업육성 지원사업(목재 해가림) | E61: 민간자본사업보조 | F61: 3천원*23,000㎡*50% | H61: 69,000 | I61: 34,500 | J61: 34,500 | K61: 34,500 | L61: 34,500 | M61: 34,500
B62: 농정과 | C62: 효자면 도효자로 ****-** 박** | D62: 인삼생약산업육성 지원사업(이동식 저온저장고) | E62: 민간자본사업보조 | F62: 500천원*10㎡*50% | H62: 5,000 | I62: 2,500 | J62: 2,500 | K62: 2,500 | L62: 2,500 | M62: 2,500
B63: 농정과 | C63: 감천면 도평길 ** 김** 외 2명 | D63: 인삼생약산업육성 지원사업(점적관수) | E63: 민간자본사업보조 | F63: 0.8천원*7,500㎡*50% | H63: 6,000 | I63: 3,000 | J63: 3,000 | K63: 3,000 | L63: 3,000 | M63: 3,000
B64: 농정과 | C64: 감천면 도평길 ** 김** 외 8명 | D64: 인삼생약산업육성 지원사업(제초용매트) | E64: 민간자본사업보조 | F64: 1천원*32,000㎡*50% | H64: 32,000 | I64: 16,000 | J64: 16,000 | K64: 16,000 | L64: 16,000 | M64: 16,000
B65: 농정과 | C65: 예천읍 신리길 **-** 오** | D65: 특용작물(인삼)생산시설현대화 지원(무인방제기) | E65: 민간자본사업보조 | F65: 1.5천원*6,510㎡*50% | H65: 9,765 | I65: 4,882 | J65: 4,883 | K65: 4,882 | L65: 4,882 | M65: 4,882
B66: 농정과 | C66: 감천면 오향길 ** 유** 외 1명 | D66: 특용작물(인삼)생산시설현대화 지원(야생동물방지시설) | E66: 민간자본사업보조 | F66: 0.5천원*9,570㎡*50% | H66: 4,785 | I66: 2,392 | J66: 2,393 | K66: 2,392 | L66: 2,392 | M66: 2,392
B67: 농정과 | C67: 예천읍 신리길 **-** 오** | D67: 특용작물(인삼)생산시설현대화 지원(인삼수확기) | E67: 민간자본사업보조 | F67: 5,000천원*1대*50% | H67: 5,000 | I67: 2,500 | J67: 2,500 | K67: 2,500 | L67: 2,500 | M67: 2,500
B68: 농정과 | C68: 호명면 종산길 ***-** 박** 외 5명 | D68: 특용작물(인삼)생산시설현대화 지원(점적관수) | E68: 민간자본사업보조 | F68: 0.8천원*30,064㎡*50% | H68: 24,051 | I68: 12,022 | J68: 12,029 | K68: 12,022 | L68: 12,022 | M68: 12,022
B69: 농정과 | C69: 예천읍 신리길 **-** 오** | D69: 특용작물(인삼)생산시설현대화 지원(철재해가림시설) | E69: 민간자본사업보조 | F69: 5천원*4644㎡*50% | H69: 23,220 | I69: 11,610 | J69: 11,610 | K69: 11,610 | L69: 11,610 | M69: 11,610
B70: 농정과 | C70: 감천면 수한*길 ***-*** ******** 김** 외 2명 | D70: 토종곡물 재배단지 생산비 지원사업 | E70: 민간자본사업보조 | F70: 1,000천원*10ha*70% | G70: 9,800 | H70: 10,000 | I70: 7,000 | J70: 3,000 | K70: 7,000 | L70: 7,000 | M70: 7,000
B71: 농정과 | C71: 용궁면 경서로 ****-** ******** 안** | D71: 콩,맥류,토종곡물 재배단지 장비 지원사업 | E71: 민간자본사업보조 | F71: 30,000천원*1식*70% | H71: 30,000 | I71: 21,000 | J71: 9,000 | K71: 21,000 | L71: 21,000 | M71: 21,000
B72: 농정과 | C72: 개포면 황산*길 **-* **********회 외 1명 | D72: 명품쌀 재배단지 조성사업 | E72: 민간자본사업보조 | F72: 35,400천원*1식*100% | G72: 50,241 | H72: 35,400 | I72: 35,400 | K72: 35,400 | L72: 35,400 | M72: 35,400
B73: 농정과 | C73: 예천읍 대심3길 **-** 윤** 외 46명 | D73: 밭작물 폭염(가뭄)피해 예방사업 | E73: 민간자본사업보조 | F73: 34,800천원*1식*70% | H73: 34,800 | I73: 24,360 | J73: 10,440 | K73: 24,360 | L73: 24,360 | M73: 24,360
B74: 농정과 | C74: 예천읍 갈구*길 ***-* 김** 외 8명 | D74: 유해 야생동물 포획시설 지원사업 | E74: 민간자본사업보조 | F74: 14,850천원*1식*80% | H74: 14,850 | I74: 11,880 | J74: 2,970 | K74: 11,880 | L74: 11,880 | M74: 11,880
B75: 농정과 | C75: 용문면 방두들길 **-* 최** 외 2명 | D75: 벼 육묘 육묘장(소규모) 설치 지원사업 | E75: 민간자본사업보조 | F75: 126,000천원*1식*50% | H75: 126,000 | I75: 63,000 | J75: 63,000 | K75: 63,000 | L75: 63,000 | M75: 63,000
B76: 농정과 | C76: 용궁면 용궁로 ***-* 윤** 외 1명 | D76: 벼 육묘장 개보수(대형) 지원사업 | E76: 민간자본사업보조 | F76: 50,000천원*1식*50% | H76: 50,000 | I76: 25,000 | J76: 25,000 | K76: 25,000 | L76: 25,000 | M76: 25,000
B77: 농정과 | C77: 용문면 직동길 ***-* 임** 외 6명 | D77: 벼 육묘장 개보수(소형) 지원사업 | E77: 민간자본사업보조 | F77: 35,000천원*1식*50% | H77: 35,000 | I77: 17,500 | J77: 17,500 | K77: 17,500 | L77: 17,500 | M77: 17,500
B78: 농정과 | C78: 유천면 버드내길 *** 박** 외 1명 | D78: 벼 육묘 녹화장(대형) 설치 지원사업 | E78: 민간자본사업보조 | F78: 40,000천원*1식*50% | H78: 40,000 | I78: 20,000 | J78: 20,000 | K78: 20,000 | L78: 20,000 | M78: 20,000
B79: 농정과 | C79: 예천읍 도효자로 **-* 이** 외 3명 | D79: 벼 육묘 녹화장(소형) 설치 지원사업 | E79: 민간자본사업보조 | F79: 44,000천원*1식*50% | H79: 44,000 | I79: 22,000 | J79: 22,000 | K79: 22,000 | L79: 22,000 | M79: 22,000
B80: 농정과 | C80: 예천읍 땅골못길 **-* 이** 외 14명 | D80: 대규모 벼 재배농가 대형농기계 지원사업 | E80: 민간자본사업보조 | F80: 50,000천원*15대*40% | H80: 1,100,100 | I80: 296,000 | J80: 804,100 | K80: 296,000 | L80: 296,000 | M80: 296,000
B81: 농정과 | C81: 예천군 풍양면 오지길 ** 최** 외 29명 | D81: 여성농업인 농작업 편의장비 지원사업 | E81: 민간자본사업보조 | F81: 500천원*30대*50% | H81: 15,000 | I81: 7,500 | J81: 7,500 | K81: 7,500 | L81: 7,500 | M81: 7,500
B82: 농정과 | C82: 은풍면 과산골길 **-* 김** 외 3명 | D82: 농업6차산업 활성화 대책지원사업 | E82: 민간경상사업보조 | F82: 3,000천원 * 4명 * 90% | H82: 12,000 | I82: 10,800 | J82: 1,200 | K82: 10,800 | L82: 10,800 | M82: 10,800
B83: 농정과 | C83: 예천읍 상동리 권** 외 159명 | D83: 중소형농기계 지원사업 | E83: 민간자본사업보조 | F83: 2,000천원 * 157대 * 50% | H83: 314,000 | I83: 157,000 | J83: 157,000 | K83: 157,000 | L83: 157,000 | M83: 157,000
B84: 농정과 | C84: 보문면 기곡리 송** 외 1명 | D84: 밭식량작물 다목적 농기계 지원사업 | E84: 민간자본사업보조 | F84: 20,000천원 * 2대 * 50% | H84: 40,000 | I84: 20,000 | J84: 20,000 | K84: 20,000 | L84: 20,000 | M84: 20,000
B85: 농정과 | C85: 예천읍 갈구리 박** 외 40명 | D85: 벼 생력화 장비 지원사업 | E85: 민간자본사업보조 | F85: 216,000천원 * 1식 * 50% (40대) | H85: 216,000 | I85: 108,000 | J85: 108,000 | K85: 108,000 | L85: 108,000 | M85: 108,000
B86: 농정과 | C86: 용문면 덕신리 정** 외 25명 | D86: 농작물 피해방지 포획(방제)기 지원사업 | E86: 민간자본사업보조 | F86: 10,650천원 * 1식 * 50% (80대) | H86: 10,650 | I86: 5,325 | J86: 5,325 | K86: 5,325 | L86: 5,325 | M86: 5,325
B87: 농정과 | C87: 예천읍 가수내길 **-* 박** 외 20명 | D87: 친환경농법 종합지원사업 | E87: 민간자본사업보조 | F87: 1,400천원/1,000천원*132ha*70% | H87: 142,493 | I87: 99,745 | J87: 42,748 | K87: 99,745 | L87: 99,745 | M87: 99,745
B88: 농정과 | C88: 예천읍 왕신*리길 ** 김** 외 42명 | D88: 친환경 실천단지(우렁이농법)지원사업 | E88: 민간자본사업보조 | F88: 300천원*1,549ha*50* | H88: 549,122 | I88: 274,561 | J88: 274,561 | K88: 274,561 | L88: 274,561 | M88: 274,561
B89: 농정과 | C89: 농협중앙회 예천군지부장 | D89: 유기농업자재 지원사업(녹비종자대) | E89: 민간자본사업보조 | F89: 4,727천원*1식*50% | H89: 4,727 | I89: 2,363 | J89: 2,363 | K89: 2,363 | L89: 2,363 | M89: 2,363
B90: 농정과 | C90: 용문면 우망골길 *** 손** 외 36명 | D90: 유기농업자재 지원사업(유기자재) | E90: 민간자본사업보조 | F90: 119,331천원*1식*50% | H90: 119,331 | I90: 59,666 | J90: 59,666 | K90: 59,666 | L90: 59,666 | M90: 59,666
B91: 농정과 | C91: 예천군연합사업단 | D91: 농산물산지유통센터 운영지원 | E91: 민간자본사업보조 | F91: 물류비 31,000원 * 4,500톤 * 50% 선별비 60,000원 * 4,000톤 * 50% 포장비 1,200원 * 300,000장 * 50% | G91: 435,000 | H91: 740,000 | I91: 370,000 | J91: 370,000 | K91: 370,000 | L91: 370,000 | M91: 370,000
B92: 농정과 | C92: 예천군농산물산지유통센터 | D92: 농산물산지유통센터 시설개선 지원 | E92: 민간자본사업보조 | F92: 60,000,000원 * 1식 * 50% | H92: 60,000 | I92: 30,000 | J92: 30,000 | K92: 30,000 | L92: 30,000 | M92: 30,000
B93: 농정과 | C93: 지보면 지보로 ***-* 정** 외 6인 | D93: 귀농인 정착지원사업 | E93: 민간자본사업보조 | F93: 5,000,000원 * 7명 * 80% | H93: 35,000 | I93: 28,000 | J93: 7,000 | K93: 28,000 | L93: 28,000 | M93: 28,000
B94: 농정과 | C94: 호명면 행복로 *** ***-*** 최** 외 24인 | D94: 귀농인 영농기반 지원사업 | E94: 민간자본사업보조 | F94: 5,000,000원 * 25명 * 80% | H94: 125,000 | I94: 100,000 | J94: 25,000 | K94: 100,000 | L94: 100,000 | M94: 100,000
B95: 농정과 | C95: 풍양면 우망길 ***-* 정** 외 4인 | D95: 귀농인 빈집수리비 지원사업 | E95: 민간경상사업보조 | F95: 5,000,000원 * 5명 * 80% | H95: 25,000 | I95: 20,000 | J95: 5,000 | K95: 20,000 | L95: =K95 -> 20,000 | M95: =L95 -> 20,000
B96: 농정과 | C96: 은풍면 도효자로 *** 권** 외 1명 | D96: 결혼이민자농가 소득증진 사업 | E96: 민간자본사업보조 | F96: 10,000천원*2식*80% | H96: 20,000 | I96: 16,000 | J96: 4,000 | K96: 16,000 | L96: 16,000 | M96: 16,000
B97: 농정과 | C97: 예천군친환경농업인연합회 | D97: 친환경 육묘상처리약제 지원사업 | E97: 민간자본사업보조 | F97: 20,000천원*1식*50% | H97: 20,000 | I97: 10,000 | J97: 10,000 | K97: 10,000 | L97: 10,000 | M97: 10,000
B98: 축산과 소계 | D98: =SUBTOTAL(103,D99:D115)&"건" -> 17건 | G98: =SUM(G99:G115) -> 72,104 | H98: =SUM(H99:H115) -> 959,500 | I98: 490,150 | J98: 469,350 | K98: 490,150 | L98: =K98 -> 490,150 | M98: =L98 -> 490,150
B99: 축산과 | C99: 용문면 하학길 ** 김** 외 3명 | D99: 내수면 양식장 기자재 지원 | E99: 민간자본사업보조 | F99: 2,250천원*4세트*70% | H99: 9,000 | I99: 6,300 | J99: 2,700 | K99: 6,300 | L99: =K99 -> 6,300 | M99: =L99 -> 6,300
B100: 축산과 | C100: 예천읍 원고개길 ** 김** 외 15명 | D100: 불량모돈 갱신 지원사업 | E100: 민간자본사업보조 | F100: 모돈 600천원*150두*50% | G100: 56,750 | H100: 90,000 | I100: 45,000 | J100: 45,000 | K100: 45,000 | L100: =K100 -> 45,000 | M100: =L100 -> 45,000
B101: 축산과 | C101: 예천읍 원고개길 ** 김** 외 16명 | D101: 돼지 액상정액 지원사업 | E101: 민간자본사업보조 | F101: 돼지액상정액 15천원*1,500두*60% | G101: 15,354 | H101: 22,500 | I101: 13,500 | J101: 9,000 | K101: 13,500 | L101: 13,500 | M101: 13,500
B102: 축산과 | C102: 예천읍 통명길 **-* 안** 외 146명 | D102: 곤포사일리지제조비닐랩 지원사업 | E102: 민간자본사업보조(자체재원) | F102: 100천원*1,000롤*30% | H102: 100,000 | I102: 30,000 | J102: 70,000 | K102: 30,000 | L102: 30,000 | M102: 30,000
B103: 축산과 | C103: 호명면 행복로 *** 김** 외 419명 | D103: 면역강화용사료첨가제 지원사업 | E103: 민간자본사업보조(이전재원) | F103: 30천원*8,080포*50% | H103: 242,400 | I103: 121,200 | J103: 121,200 | K103: 121,200 | L103: 121,200 | M103: 121,200
B104: 축산과 | C104: 호명면 행복리 *** 박** 외 181명 | D104: 꿀벌화분 지원 | E104: 민간자본사업보조(이전재원) | F104: 8천원*9,000kg*50% | H104: 72,000 | I104: 36,000 | J104: 36,000 | K104: 36,000 | L104: 36,000 | M104: 36,000
B105: 축산과 | C105: 예천읍 동읍내길 *-* 임** 외 140명 | D105: 양봉(개량종) 벌통 지원 | E105: 민간자본사업보조(이전재원) | F105: 30천원*2,000개*50% | H105: 60,000 | I105: 30,000 | J105: 30,000 | K105: 30,000 | L105: 30,000 | M105: 30,000
B106: 축산과 | C106: 예천읍 남부초등길 **-* 이** 외 21명 | D106: 벌통 전기가온장치 지원 | E106: 민간자본사업보조(이전재원) | F106: 13천원*2,000개*50% | H106: 26,000 | I106: 13,000 | J106: 13,000 | K106: 13,000 | L106: 13,000 | M106: 13,000
B107: 축산과 | C107: 보문면 신운길 ***-** 김** | D107: 조사료생산장비 지원사업 | E107: 민간자본사업보조(이전재원) | F107: 30,000천원*1대*50% | H107: 30,000 | I107: 15,000 | J107: 15,000 | K107: 15,000 | L107: 15,000 | M107: 15,000
B108: 축산과 | C108: 예천읍 봉덕로 ** 송** 외 3명 | D108: 자동채밀기 지원 | E108: 민간자본사업보조(이전재원) | F108: 2,200천원*4대*50% | H108: 8,800 | I108: 4,400 | J108: 4,400 | K108: 4,400 | L108: 4,400 | M108: 4,400
B109: 축산과 | C109: 지보면 어신*길 *** 최** 외 1명 | D109: 양봉산물 저온저장고 지원 | E109: 민간자본사업보조(이전재원) | F109: 6,000천원*2개소*50% | H109: 12,000 | I109: 6,000 | J109: 6,000 | K109: 6,000 | L109: 6,000 | M109: 6,000
B110: 축산과 | C110: 은풍면 은풍로**-* 김** 외 7명 | D110: 양봉 사료용해기 지원 | E110: 민간자본사업보조(이전재원) | F110: 1,600천원*8대*50% | H110: 12,800 | I110: 6,400 | J110: 6,400 | K110: 6,400 | L110: 6,400 | M110: 6,400
B111: 축산과 | C111: 호명면 행복로 ***, ***동 ****호 김** 외 323명 | D111: 한우 기생충 구제사업 | E111: 민간자본사업보조 | F111: 7,000원*5,000두*50% | H111: 35,000 | I111: 17,500 | J111: 17,500 | K111: 17,500 | L111: 17,500 | M111: 17,500
B112: 축산과 | C112: 예천읍 원고개길 ** 김** 외 21명 | D112: 돼지 써코바이러스 백신지원사업(상반기) | E112: 민간자본사업보조 | F112: 2,000원*40,000두*60% | H112: 80,000 | I112: 48,000 | J112: 32,000 | K112: 48,000 | L112: 48,000 | M112: 48,000
B113: 축산과 | C113: 예천읍 시장로 *** 김** 외 5명 | D113: 축산농가 소독시설 지원사업 | E113: 민간자본사업보조 | F113: 5,000,000원*6대*60% | H113: 30,000 | I113: 18,000 | J113: 12,000 | K113: 18,000 | L113: 18,000 | M113: 18,000
B114: 축산과 | C114: 예천읍 양촌길 **-* 권** 외 69명 | D114: 구제역 백신접종 원거리 자동주사기 지원사업 | E114: 민간자본사업보조 | F114: 350,000원*70개*70% | H114: 24,500 | I114: 17,150 | J114: 7,350 | K114: 17,150 | L114: 17,150 | M114: 17,150
B115: 축산과 | C115: 예천읍 원고개길 **, 김** 외 15명 | D115: 양돈농가 방역인프라 설치지원사업 | E115: 민간자본사업보조 | F115: 104,500,000원*1식(22대)*60% | H115: 104,500 | I115: 62,700 | J115: 41,800 | K115: 62,700 | L115: 62,700 | M115: 62,700
B116: 건축과 소계 | D116: 1건 | H116: =SUM(H117) -> 150,000 | I116: 150,000 | K116: 150,000 | L116: =K116 -> 150,000 | M116: 150,000
B117: 건축과 | C117: 서울특별시 성북구 ** *동 **아파트 ***동 ****호 송** 외 149명 | D117: 농촌빈집정비사업 | E117: 민간자본사업보조 | F117: 농촌빈집정비 150동 * 1,000천원 | H117: 150,000 | I117: 150,000 | K117: 150,000 | L117: 150,000 | M117: 150,000
B118: 체육사업소 소계 | D118: 3건 | G118: =SUM(G119:G121) -> 36,000 | H118: =SUM(H119:H121) -> 36,000 | I118: 36,000 | K118: 36,000 | L118: 36,000 | M118: 36,000
B119: 체육사업소 | C119: 예천군파크골프협회 | D119: 예천파크골프활성화 사업 지원 | E119: 민간단체경상사업보조 | F119: 잔디관리 : 9,780 시설물관리 : 7,340 환경정비 : 2,440 사무관리 : 5,440 | G119: 25,000 | H119: 25,000 | I119: 25,000 | K119: 25,000 | L119: 25,000 | M119: 25,000
B120: 체육사업소 | C120: 예천군파크골프협회 | D120: 전국및도단위파크골프대회 참가지원 | E120: 민간단체경상사업보조 | F120: 식대 : 3,000 버스임차료 : 600 운동용품 구입 : 1,000 다과 및 기타부대비 : 400 | G120: 5,000 | H120: 5,000 | I120: 5,000 | K120: 5,000 | L120: =K120 -> 5,000 | M120: =L120 -> 5,000
B121: 체육사업소 | C121: 예천군파크골프협회 | D121: 북부지역시군(8개지역)파크골프대회 개최 지원 | E121: 민간단체경상사업보조 | F121: 식대 : 2,000 경기운영비 : 1,500 운동용품 구입 : 1,500 다과 및 기타부대비 : 1,000 | G121: 6,000 | H121: 6,000 | I121: 6,000 | K121: 6,000 | L121: 6,000 | M121: =L121 -> 6,000

Sheet 대상자별지내역
B1: 2021년도 제2회 예천군 보조금심의위원회 대상자내역 별지 조서
M2: (단위 : 천원)
B3: 부서명 | C3: 보 조 사 업 자 | E3: 보 조 사 업 명 | F3: 과목명 | G3: 사 업 내 용 | H3: 2020년 지원액 | I3: 계 | J3: 보조금 | K3: 자부담 | L3: 1차 (해당부서) | M3: 2차 (예산부서) | N3: 3차 (위원회)
C4: 주소 | D4: 성명
B5: 합계 | D5: =SUM(D6,D44,D46,D52,D67,D227,D1660,D3066,D3217) -> 3,206 | H5: =SUM(H6,H44,H46,H52,H67,H227,H1660,H3066,H3217) -> 1,772,043 | I5: =SUM(I6,I44,I46,I52,I67,I227,I1660,I3066,I3217) -> 9,369,579 | J5: =SUM(J6,J44,J46,J52,J67,J227,J1660,J3066,J3217) -> 4,768,121 | K5: =SUM(K6,K44,K46,K52,K67,K227,K1660,K3066,K3217) -> 4,601,458 | L5: =SUM(L6,L44,L46,L52,L67,L227,L1660,L3066,L3217) -> 4,768,121 | M5: =L5 -> 4,768,121 | N5: 4,768,121
B6: 주민복지실 소계 | D6: =COUNTA(D7:D43) -> 37 | H6: =SUM(H7:H43) -> 33,613 | I6: =SUM(I7:I43) -> 166,045 | J6: =SUM(J7:J43) -> 149,934 | K6: 16,111 | L6: 149,934 | M6: 149,934 | N6: 149,934.0
B7: 주민복지실 | C7: 예천군 호명면 행복로 230 우방아이유쉘 2차아파트(관리동) | D7: 고운어린이집 | E7: 어린이집환경개선비 지원사업 | F7: 사회복지사업보조 | G7: 보육실 및 복도 도배 | H7: 1,000 | I7: 642 | J7: 642 | L7: 642 | M7: 642 | N7: 642
B8: 주민복지실 | C8: 예천군 호명면 새움3로 7 경북도청아이파크아파트(관리동) | D8: 아이파크어린이집 | E8: 어린이집환경개선비 지원사업 | F8: 사회복지사업보조 | G8: 영아용 세면대 교체 및 안전용품 구입 | H8: 1,000 | I8: 642 | J8: 642 | L8: 642 | M8: =L8 -> 642 | N8: =M8 -> 642
B9: 주민복지실 | C9: 예천군 호명면 검무로 17 우방아이유쉘 1차아파트(관리동) | D9: 우방어린이집 | E9: 어린이집환경개선비 지원사업 | F9: 사회복지사업보조 | G9: 어린이집 벽 안전 보호대 설치 | H9: 1,000 | I9: 642 | J9: 642 | L9: 642 | M9: 642 | N9: 642
B10: 주민복지실 | C10: 예천군 예천읍 대심3길 47 | D10: 자연어린이집 | E10: 어린이집환경개선비 지원사업 | F10: 사회복지사업보조 | G10: 화장실 세면대 노후로 인한 교체 작업 | H10: 1,000 | I10: 642 | J10: 642 | L10: 642 | M10: 642 | N10: 642
B11: 주민복지실 | C11: 예천군 호명면 행복로 177 110동102호(동일스위트 더 파크) | D11: 동일키즈어린이집 | E11: 어린이집환경개선비 지원사업 | F11: 사회복지사업보조 | G11: 바닥 안전 접이식 매트 설치 | H11: 1,000 | I11: 642 | J11: 642 | L11: 642 | M11: 642 | N11: 642
B12: 주민복지실 | C12: 예천군 호명면 행복로 177, 120동104호 | D12: 동일스위트어린이집 | E12: 어린이집환경개선비 지원사업 | F12: 사회복지사업보조 | G12: 어린이통학버스 개조 및 안전용품 구입 | H12: 1,000 | I12: 642 | J12: 642 | L12: 642 | M12: 642 | N12: 642
B13: 주민복지실 | C13: 예천군 호명면 행복로 177, 110동104호 | D13: 소담어린이집 | E13: 어린이집환경개선비 지원사업 | F13: 사회복지사업보조 | G13: 어린이통학버스 카시트 구입 | H13: 1,000 | I13: 642 | J13: 642 | L13: 642 | M13: 642 | N13: 642
B14: 주민복지실 | C14: 예천군 호명면 행복로 230, 205동 103호(우방아이유쉘2차) | D14: 꿈터우방어린이집 | E14: 어린이집환경개선비 지원사업 | F14: 사회복지사업보조 | G14: 안전 벽 매트 설치 | H14: 1,000 | I14: 642 | J14: 642 | L14: 642 | M14: 642 | N14: 642
B15: 주민복지실 | C15: 예천군 호명면 양지로 55 모아엘가 104동 104호 | D15: 파스텔어린이집 | E15: 어린이집환경개선비 지원사업 | F15: 사회복지사업보조 | G15: 안전 벽 매트 설치 | H15: 1,000 | I15: 642 | J15: 642 | L15: 642 | M15: 642 | N15: 642
B16: 주민복지실 | C16: 예천군 호명면 행복로 215, 101동 102호(호반베르디움1차) | D16: 호반아이꿈어린이집 | E16: 어린이집환경개선비 지원사업 | F16: 사회복지사업보조 | G16: 안전 매트 설치 | H16: 1,000 | I16: 642 | J16: 642 | L16: 642 | M16: 642 | N16: 642
B17: 주민복지실 | C17: 예천군 호명면 행복로 215, 102동 101호(호반베르디움1차) | D17: 아이팡팡어린이집 | E17: 어린이집환경개선비 지원사업 | F17: 사회복지사업보조 | G17: 어린이집 중문 설치 | H17: 1,000 | I17: 642 | J17: 642 | L17: 642 | M17: 642 | N17: 642
B18: 주민복지실 | C18: 예천군 호명면 행복로 229 우방아이유쉘센트럴 505동 1층 | D18: 우방센트럴어린이집 | E18: 어린이집환경개선비 지원사업 | F18: 사회복지사업보조 | G18: 보육실문 교체 | H18: 1,000 | I18: 642 | J18: 642 | L18: 642 | M18: 642 | N18: 642
B19: 주민복지실 | C19: 예천군 호명면 행복로 215 경북도청신도시호반베르디움1차(관리동) | D19: 웃는아이어린이집 | E19: 어린이집환경개선비 지원사업 | F19: 사회복지사업보조 | G19: 조리실 개선 공사 | H19: 1,000 | I19: 3,892 | J19: 642 | K19: 3,250 | L19: 642 | M19: 642 | N19: 642
B20: 주민복지실 | C20: 예천군 호명면 검무로 27, 310동 102호(우방아이유쉘센텀) | D20: 새싹어린이집 | E20: 어린이집환경개선비 지원사업 | F20: 사회복지사업보조 | G20: 어린이집 현관 중문 설치 | H20: 1,000 | I20: 822 | J20: 642 | K20: 180 | L20: 642 | M20: 642 | N20: 642
B21: 주민복지실 | C21: 예천군 호명면 새움3로 7, 102동 102호(경북도청아이파크) | D21: 아이원어린이집 | E21: 어린이집환경개선비 지원사업 | F21: 사회복지사업보조 | G21: 안전용품 및 안전매트 구입 | H21: 1,000 | I21: 642 | J21: 642 | L21: 642 | M21: 642 | N21: 642
B22: 주민복지실 | C22: 예천군 호명면 양지로 14, 216동 101호(호반베르디움2차) | D22: 천사어린이집 | E22: 어린이집환경개선비 지원사업 | F22: 사회복지사업보조 | G22: 화장실 원목 발판 개,보수 | H22: 1,000 | I22: 642 | J22: 642 | L22: 642 | M22: 642 | N22: 642
B23: 주민복지실 | C23: 예천군 예천읍 충효로 273-1 도담어린이집 | D23: 도담어린이집 | E23: 어린이집환경개선비 지원사업 | F23: 사회복지사업보조 | G23: 페인트 시공 | H23: 1,000 | I23: 642 | J23: 642 | L23: 642 | M23: 642 | N23: 642
B24: 주민복지실 | C24: 예천군 호명면 양지로 14, 216동 104호(경북도청신도시 호반베르디움 2차) | D24: 호반어린이집 | E24: 어린이집환경개선비 지원사업 | F24: 사회복지사업보조 | G24: 어린이집 현관 중문 시공 | H24: 1,000 | I24: 742 | J24: 642 | K24: 100 | L24: 642 | M24: 642 | N24: 642
B25: 주민복지실 | C25: 예천군 호명면 행복로 177, 111동104호(동일스위트더파크) | D25: 도담숲어린이집 | E25: 어린이집환경개선비 지원사업 | F25: 사회복지사업보조 | G25: 보육실 바닥 매트 설치 | H25: 1,000 | I25: 642 | J25: 642 | L25: 642 | M25: 642 | N25: 642
B26: 주민복지실 | C26: 예천군 예천읍 구남골길 4 | D26: 아롱다롱어린이집 | E26: 어린이집환경개선비 지원사업 | F26: 사회복지사업보조 | G26: 1층 영아반 교실 벽지 보수 | H26: 1,000 | I26: 642 | J26: 642 | L26: 642 | M26: 642 | N26: 642
B27: 주민복지실 | C27: 예천군 호명면 검무로 27 310동 104호(경북도청신도시우방아이유쉘센텀) | D27: 하나몬테소리어린이집 | E27: 어린이집환경개선비 지원사업 | F27: 사회복지사업보조 | G27: 자연재해 피해예방 비 가림막 설치 | H27: 1,000 | I27: 642 | J27: 642 | L27: 642 | M27: 642 | N27: 642
B28: 주민복지실 | C28: 예천군 호명면 행복로 177, 111동103호 | D28: 송이어린이집 | E28: 어린이집환경개선비 지원사업 | F28: 사회복지사업보조 | G28: 피난용 미끄럼대 설치 및 화재대피용 숨수건 등 CCTV 설치 개보수(시설내 사각지대 해소) | H28: 993 | I28: 642 | J28: 642 | L28: 642 | M28: 642 | N28: 642
B29: 주민복지실 | C29: 예천군 은풍면 한감길 83 | D29: 은풍면 탑2리노인회 | E29: 경로당 신축사업 | F29: 민간자본사업보조 | G29: 신축 100,000,000원 * 1개소 | I29: =SUM(J29:K29) -> 100,000 | J29: 100,000 | L29: =J29 -> 100,000 | M29: 100,000 | N29: 100,000
B30: 주민복지실 | C30: 예천군 은풍면 은풍로 386 | D30: 은풍(은산1리)경로당 | E30: 경로당 보수사업 | F30: 민간자본사업보조 | G30: 주방바닥 난방 설치 | I30: =SUM(J30:K30) -> 10,192 | J30: 7,130 | K30: 3,062 | L30: =J30 -> 7,130 | M30: 7,130 | N30: 7,130
B31: 주민복지실 | C31: 예천군 유천면 마천길 130 | D31: 마천리경로당 | E31: 경로당 보수사업 | F31: 민간자본사업보조 | G31: 실내바닥(누수, 균열) 보수공사 | H31: 10,000 | I31: 5,500 | J31: 3,850 | K31: 1,650 | L31: 3,850 | M31: 3,850 | N31: 3,850
B32: 주민복지실 | C32: 예천군 유천면 솔안길 147 | D32: 송지리솔안경로당 | E32: 경로당 보수사업 | F32: 민간자본사업보조 | G32: 비가림 설치 | I32: 3,700 | J32: 2,590 | K32: 1,110 | L32: 2,590 | M32: 2,590 | N32: 2,590
B33: 주민복지실 | C33: 예천군 유천면 용암길 75 | D33: 용암리경로당 | E33: 경로당 보수사업 | F33: 민간자본사업보조 | G33: 비가림 설치 | I33: 2,750 | J33: 1,920 | K33: 830 | L33: 1,920 | M33: 1,920 | N33: 1,920
B34: 주민복지실 | C34: 예천군 개포면 동소리길 135 | D34: 동송경로당 | E34: 경로당 보수사업 | F34: 민간자본사업보조 | G34: 비가림 설치 | I34: 7,294 | J34: 5,100 | K34: 2,194 | L34: 5,100 | M34: 5,100 | N34: 5,100
B35: 주민복지실 | C35: 예천군 지보면 예지로 685-1 | D35: 어신리학구단위경로당 | E35: 경로당 보수사업 | F35: 민간자본사업보조 | G35: 싱크대 교체 | I35: 1,760 | J35: 1,230 | K35: 530 | L35: 1,230 | M35: 1,230 | N35: 1,230
B36: 주민복지실 | C36: 예천군 풍양면 상풍로 1348-4 | D36: 낙상3리경로당 | E36: 경로당 보수사업 | F36: 민간자본사업보조 | G36: 싱크대 교체 | I36: 1,635 | J36: 1,140 | K36: 495 | L36: 1,140 | M36: 1,140 | N36: 1,140
B37: 주민복지실 | C37: 예천군 풍양면 청운1리길 49-60 | D37: 청운1리성당경로당 | E37: 경로당 보수사업 | F37: 민간자본사업보조 | G37: 보일러 교체 (심야전기) | I37: 6,600 | J37: 4,620 | K37: 1,980 | L37: 4,620 | M37: 4,620 | N37: 4,620
B38: 주민복지실 | C38: 예천군 보문면 작평길 1-4 | D38: 작곡리경로당 | E38: 행복경로당 물품지원 | F38: 민간자본사업보조 | G38: 냉장고 구입 | H38: 720 | I38: 1,150 | J38: 1,150 | L38: 1,150 | M38: 1,150 | N38: 1,150
B39: 주민복지실 | C39: 예천군 호명면 양지로 55 | D39: 모아엘가에듀파크경로당 | E39: 행복경로당 물품지원 | F39: 민간자본사업보조 | G39: 냉장고, TV 구입 | I39: 2,700 | J39: 2,450 | K39: 250 | L39: 2,450 | M39: 2,450 | N39: 2,450
B40: 주민복지실 | C40: 예천군 유천면 고산길 45-4 | D40: 고산리경로당 | E40: 행복경로당 물품지원 | F40: 민간자본사업보조 | G40: TV (50) 구입 | I40: 940 | J40: 940 | L40: 940 | M40: 940 | N40: 940
B41: 주민복지실 | C41: 예천군 유천면 화지2길 12 | D41: 화지2리경로당 | E41: 행복경로당 물품지원 | F41: 민간자본사업보조 | G41: 김치냉장고 구입 | I41: 1,000 | J41: 1,000 | L41: 1,000 | M41: 1,000 | N41: 1,000
B42: 주민복지실 | C42: 예천군 지보면 만화2길 8 | D42: 만화2경로당 | E42: 행복경로당 물품지원 | F42: 민간자본사업보조 | G42: 냉장고 구입 | I42: 1,190 | J42: 1,190 | L42: 1,190 | M42: 1,190 | N42: 1,190
B43: 주민복지실 | C43: 예천군 풍양면 공덕길 101 | D43: 공덕2리경로당 | E43: 행복경로당 물품지원 | F43: 민간자본사업보조 | G43: 냉장고 구입 | H43: 900 | I43: =SUM(J43:K43) -> 1,980 | J43: 1,500 | K43: 480 | L43: =J43 -> 1,500 | M43: 1,500 | N43: 1,500
B44: 새마을경제과 소계 | D44: 1 | H44: =SUM(H45) -> 45,000 | I44: =SUM(I45) -> 45,000 | J44: =SUM(J45) -> 45,000 | K44: 0 | L44: =J44 -> 45,000 | M44: =J44 -> 45,000 | N44: =M44 -> 45,000
B45: 새마을경제과 | C45: 예천군 예천읍 도립대학길 114 | D45: 경북도립대학교 창업보육센터 | E45: 경북청년예비창업지원사업 | F45: 민간경상사업보조 | G45: 청년창업활동비 및 창업교육지원 | H45: 45,000 | I45: 45,000 | J45: 45,000 | L45: 45,000 | M45: =J45 -> 45,000 | N45: =M45 -> 45,000
B46: 종합민원과 소계 | D46: =COUNTA(D47:D51) -> 5 | H46: =SUM(H47:H51) -> 50,000 | I46: =SUM(I47:I51) -> 92,000 | J46: 90,000 | K46: 2,000 | L46: 90,000 | M46: =J46 -> 90,000 | N46: =M46 -> 90,000
B47: 종합민원과 | C47: 예천군 예천읍 역전길 2 | D47: (사)한국외식업중앙회경상북도지회예천군지부 | E47: 위생업소 현장방문 친절교육 | F47: 민간경상사업보조 | G47: 현장방문 친절교육 실시 | H47: 20,000 | I47: 20,000 | J47: 20,000 | L47: 20,000 | M47: =L47 -> 20,000 | N47: =M47 -> 20,000
B48: 종합민원과 | C48: 예천군 예천읍 역전길 2 | D48: (사)한국외식업중앙회경상북도지회예천군지부 | E48: 식중독예방 및 음식문화개선 사업 | F48: 민간경상사업보조 | G48: 모바일웹 홈페이지 관리 식중독 예방 및 음식문화개선 홍보 식문화개선 식단전시회 | H48: 20,000 | I48: 20,000 | J48: 20,000 | L48: 20,000 | M48: =L48 -> 20,000 | N48: =M48 -> 20,000
B49: 종합민원과 | C49: 예천군 예천읍 역전길 2 | D49: (사)한국외식업중앙회경상북도지회예천군지부 | E49: 외식업소 영업주 선진외식 문화체험 | F49: 민간경상사업보조 | G49: 문화체험, 차량임차 등 | H49: 10,000 | I49: 10,000 | J49: 10,000 | L49: 10,000 | M49: 10,000 | N49: 10,000
B50: 종합민원과 | C50: 예천군 예천읍 역전길 2 | D50: (사)한국외식업중앙회경상북도지회예천군지부 | E50: 음식문화 개선을 위한 음식점 안심접시 등 지원 | F50: 민간경상사업보조 | G50: 안심접시, 국자(집게) 등 지원 | I50: 30,000 | J50: 30,000 | L50: 30,000 | M50: 30,000 | N50: 30,000
B51: 종합민원과 | C51: 예천군 예천읍 시장로 98 | D51: (사)대한미용사회 예천군지부 | E51: 미용 아카데미 운영 | F51: 민간경상사업보조 | G51: 미용교육 실시 (강사료, 재료비 지원) | I51: 12,000 | J51: 10,000 | K51: 2,000 | L51: 10,000 | M51: 10,000 | N51: 10,000
B52: 문화관광과 소계 | D52: =COUNTA(D53:D66) -> 14 | H52: =SUM(H53:H66) -> 119,000 | I52: =SUM(I53:I66) -> 130,400 | J52: 120,000 | K52: 10,400 | L52: 120,000 | M52: =J52 -> 120,000 | N52: =M52 -> 120,000
B53: 문화관광과 | C53: 예천군 예천읍 충효로 209-15 | D53: (사)한국예총예천지회 | E53: 군청사 갤러리 전시시원 | F53: 민간경상사업보조 | G53: 전시운영 : 13,000 작품설치철거 등 : 1,500 기획전시 : 9,000 일반운영비 : 1,500 | H53: 25,000 | I53: 25,000 | J53: 25,000 | L53: 25,000 | M53: =L53 -> 25,000 | N53: =M53 -> 25,000
B54: 문화관광과 | C54: 예천군 예천읍 충효로 209-15 | D54: (사)한국예총예천지회 | E54: 예천우리소리축제 지원 | F54: 민간행사사업보조 | G54: 경연대회 예심 : 2,500 축하공연비 : 2,000 홍보비 : 3,700 심사비 등 : 10,900 기타인건비 : 900 | H54: 20,000 | I54: 20,000 | J54: 20,000 | L54: 20,000 | M54: =L54 -> 20,000 | N54: =M54 -> 20,000
B55: 문화관광과 | C55: 예천군 예천읍 충효로 209-15 | D55: (사)한국예총예천지회 | E55: 우리민요활동 지원 | F55: 민간경상사업보조 | G55: 음향 및 무대 : 7,100 공연비 : 1,400 의상소품대여 : 1,500 | H55: 10,000 | I55: 10,000 | J55: 10,000 | L55: 10,000 | M55: 10,000 | N55: 10,000
B56: 문화관광과 | C56: 예천군 예천읍 효자로 77-1 | D56: 예천군기독교 연합회 | E56: 종무활동 지원 | F56: 민간경상사업보조 | G56: 20,000천원*1식 | H56: 20,000 | I56: 20,000 | J56: 20,000 | L56: 20,000 | M56: 20,000 | N56: 20,000
B57: 문화관광과 | C57: 예천군 예천읍 충효로 424-23 | D57: 예천불교총연합회 | E57: 종무활동 지원 | F57: 민간경상사업보조 | G57: 45,000천원*1식 | H57: 35,000 | I57: 45,000 | J57: 35,000 | K57: 10,000 | L57: 35,000 | M57: 35,000 | N57: 35,000
B58: 문화관광과 | C58: 예천군 호명면 행복로 177 | D58: 동일스위트더 파크 작은도서관 | E58: 작은도서관 도서구입 지원 사업 | F58: 민간경상사업보조 | G58: 1,200천원*1식 | I58: 1,200 | J58: 1,200 | L58: 1,200 | M58: 1,200 | N58: 1,200
B59: 문화관광과 | C59: 예천군 호명면 검무로 27 | D59: 경북도청우방 아이유쉘 3차 작은도서관 | E59: 작은도서관 도서구입 지원 사업 | F59: 민간경상사업보조 | G59: 1,200천원*1식 | H59: 1,200 | I59: 1,200 | J59: 1,200 | L59: 1,200 | M59: 1,200 | N59: 1,200
B60: 문화관광과 | C60: 예천군 유천면 예성로 357 | D60: 예성 작은도서관 | E60: 작은도서관 도서구입 지원 사업 | F60: 민간경상사업보조 | G60: 1,200천원*1식 | H60: 1,200 | I60: 1,200 | J60: 1,200 | L60: 1,200 | M60: 1,200 | N60: 1,200
B61: 문화관광과 | C61: 예천군 호명면 양지로 55 | D61: 꿈모아 작은도서관 | E61: 작은도서관 도서구입 지원 사업 | F61: 민간경상사업보조 | G61: 1,400천원*1식 | H61: 1,000 | I61: 1,400 | J61: 1,100 | K61: 300 | L61: 1,100 | M61: 1,100 | N61: 1,100
B62: 문화관광과 | C62: 예천군 호명면 행복로 230 | D62: 경북도청우방 아이유쉘 2차 작은도서관 | E62: 작은도서관 도서구입 지원 사업 | F62: 민간경상사업보조 | G62: 1,100천원*1식 | H62: 1,200 | I62: 1,100 | J62: 1,100 | L62: 1,100 | M62: 1,100 | N62: 1,100
B63: 문화관광과 | C63: 예천군 풍양면 청운1리길 33 | D63: 청운 작은도서관 | E63: 작은도서관 도서구입 지원 사업 | F63: 민간경상사업보조 | G63: 1,100천원*1식 | H63: 1,200 | I63: 1,100 | J63: 1,100 | L63: 1,100 | M63: 1,100 | N63: 1,100
B64: 문화관광과 | C64: 예천군 호명면 새움3로 16 | D64: 꿈터 도서관 | E64: 작은도서관 도서구입 지원 사업 | F64: 민간경상사업보조 | G64: 1,100천원*1식 | H64: 1,200 | I64: 1,100 | J64: 1,100 | L64: 1,100 | M64: 1,100 | N64: 1,100
B65: 문화관광과 | C65: 예천군 예천읍 남부초등길 11-5 | D65: 우리들 작은도서관 | E65: 작은도서관 도서구입 지원 사업 | F65: 민간경상사업보조 | G65: 1,000천원*1식 | H65: 1,000 | I65: 1,000 | J65: 1,000 | L65: 1,000 | M65: 1,000 | N65: 1,000
B66: 문화관광과 | C66: 예천군 예천읍 중앙로 71-5 | D66: 새마을문고 예천군지부 | E66: 작은도서관 도서구입 지원 사업 | F66: 민간경상사업보조 | G66: 1,100천원*1식 | H66: 1,000 | I66: 1,100 | J66: 1,000 | K66: 100 | L66: 1,000 | M66: 1,000 | N66: 1,000
B67: 환경관리과 소계 | D67: =COUNTA(D68:D226) -> 159 | H67: =SUM(H68:H226) -> 0 | I67: =SUM(I68:I226) -> 886,958 | J67: =SUM(J68:J226) -> 426,954 | K67: =SUM(K68:K226) -> 460,004 | L67: =SUM(L68:L226) -> 426,954 | M67: =J67 -> 426,954 | N67: =M67 -> 426,954
B68: 환경관리과 | C68: 예천군 호명면 행복로 ***, ***동 ****호 | D68: 윤** | E68: 가정용 저녹스보일러 설치지원사업 | F68: 민간자본사업보조 | G68: 200천원*1가구 | I68: 900 | J68: 200 | K68: 700 | L68: 200 | M68: =L68 -> 200 | N68: =M68 -> 200
B69: 환경관리과 | C69: 예천군 예천읍 남본리 ***, 예천천지원아파트 ***동 ***호 | D69: 박** | E69: 가정용 저녹스보일러 설치지원사업 | F69: 민간자본사업보조 | G69: 200천원*1가구 | I69: 913 | J69: 200 | K69: 713 | L69: 200 | M69: =L69 -> 200 | N69: =M69 -> 200
B70: 환경관리과 | C70: 예천군 예천읍 군청앞길 **, 스카이뷰 ***호 | D70: 박** | E70: 가정용 저녹스보일러 설치지원사업 | F70: 민간자본사업보조 | G70: 200천원*1가구 | I70: 750 | J70: 200 | K70: 550 | L70: 200 | M70: 200 | N70: 200
B71: 환경관리과 | C71: 예천군 예천읍 용문경천로 ****, 영남타운 ***호 | D71: 김** | E71: 가정용 저녹스보일러 설치지원사업 | F71: 민간자본사업보조 | G71: 200천원*1가구 | I71: 750 | J71: 200 | K71: 550 | L71: 200 | M71: 200 | N71: 200
B72: 환경관리과 | C72: 예천군 예천읍 대심 *길**, 로얄아파트 다동 ***호 | D72: 조** | E72: 가정용 저녹스보일러 설치지원사업 | F72: 민간자본사업보조 | G72: 200천원*1가구 | I72: 880 | J72: 200 | K72: 680 | L72: 200 | M72: 200 | N72: 200
B73: 환경관리과 | C73: 예천군 호명면 행복로 ***, 호반*차 ***동 ****호 | D73: 김** | E73: 가정용 저녹스보일러 설치지원사업 | F73: 민간자본사업보조 | G73: 200천원*1가구 | I73: 900 | J73: 200 | K73: 700 | L73: 200 | M73: 200 | N73: 200
B74: 환경관리과 | C74: 예천군 예천읍 양궁로 *, 명성남본아파트 ***호 | D74: 신** | E74: 가정용 저녹스보일러 설치지원사업 | F74: 민간자본사업보조 | G74: 200천원*1가구 | I74: 950 | J74: 200 | K74: 750 | L74: 200 | M74: 200 | N74: 200
B75: 환경관리과 | C75: 예천군 예천읍 중앙로 **, 유경팰리스 ***호 | D75: 이** | E75: 가정용 저녹스보일러 설치지원사업 | F75: 민간자본사업보조 | G75: 200천원*1가구 | I75: 950 | J75: 200 | K75: 750 | L75: 200 | M75: 200 | N75: 200
B76: 환경관리과 | C76: 예천군 호명면 행복로 ***, ***동 ****호 | D76: 임** | E76: 가정용 저녹스보일러 설치지원사업 | F76: 민간자본사업보조 | G76: 200천원*1가구 | I76: 935 | J76: 200 | K76: 735 | L76: 200 | M76: 200 | N76: 200
B77: 환경관리과 | C77: 예천군 예천읍 양궁로 **, 세아아파트 ***동 ***호 | D77: 박** | E77: 가정용 저녹스보일러 설치지원사업 | F77: 민간자본사업보조 | G77: 200천원*2가구 | I77: 950 | J77: 200 | K77: 750 | L77: 200 | M77: 200 | N77: 200
B78: 환경관리과 | C78: 예천군 풍양면 수산못길 **-** | D78: 최** | E78: 매연저감장치 부착 지원 | F78: 민간자본사업보조 | G78: 1종복합소형 2,992천원*1대 | I78: 3,273 | J78: 2,992 | K78: 281 | L78: 2,992 | M78: 2,992 | N78: 2,992
B79: 환경관리과 | C79: 예천군 용궁면 용개로 ***-** | D79: 순****** | E79: 매연저감장치 부착 지원 | F79: 민간자본사업보조 | G79: 1종복합소형 2,992천원*1대 | I79: 3,273 | J79: 2,992 | K79: 281 | L79: 2,992 | M79: 2,992 | N79: 2,992
B80: 환경관리과 | C80: 예천군 예천읍 솔천지길 ** | D80: 정** | E80: 매연저감장치 부착 지원 | F80: 민간자본사업보조 | G80: 1종복합소형 2,992천원*1대 | I80: 3,273 | J80: 2,992 | K80: 281 | L80: 2,992 | M80: 2,992 | N80: 2,992
B81: 환경관리과 | C81: 예천군 개포면 경서로 **** | D81: 임**, 최** | E81: 매연저감장치 부착 지원 | F81: 민간자본사업보조 | G81: 1종복합중형 4,770천원*1대 | I81: 5,248 | J81: 4,770 | K81: 478 | L81: 4,770 | M81: 4,770 | N81: 4,770
B82: 환경관리과 | C82: 예천군 지보면 소화*길 **-** | D82: 현** | E82: 매연저감장치 부착 지원 | F82: 민간자본사업보조 | G82: 1종복합소형 2,992천원*1대 | I82: 3,273 | J82: 2,992 | K82: 281 | L82: 2,992 | M82: 2,992 | N82: 2,992
B83: 환경관리과 | C83: 예천군 감천면 벌방*길 **-** | D83: 유** | E83: 매연저감장치 부착 지원 | F83: 민간자본사업보조 | G83: 1종복합소형 2,992천원*1대 | I83: 3,273 | J83: 2,992 | K83: 281 | L83: 2,992 | M83: 2,992 | N83: 2,992
B84: 환경관리과 | C84: 예천읍 남본*길 *-*, 세종개나리아파트 나동 ***호 | D84: 국** | E84: 매연저감장치 부착 지원 | F84: 민간자본사업보조 | G84: 1종복합소형 2,992천원*1대 | I84: 3,273 | J84: 2,992 | K84: 281 | L84: 2,992 | M84: 2,992 | N84: 2,992
B85: 환경관리과 | C85: 예천군 예천읍 용문경천로 **** | D85: 김** | E85: 매연저감장치 부착 지원 | F85: 민간자본사업보조 | G85: 1종복합소형 2,992천원*1대 | I85: 3,273 | J85: 2,992 | K85: 281 | L85: 2,992 | M85: 2,992 | N85: 2,992
B86: 환경관리과 | C86: 예천군 예천읍 봉덕로 **, ***동 ****호 | D86: 김** | E86: 매연저감장치 부착 지원 | F86: 민간자본사업보조 | G86: 1종복합소형 2,992천원*1대 | I86: 3,273 | J86: 2,992 | K86: 281 | L86: 2,992 | M86: 2,992 | N86: 2,992
B87: 환경관리과 | C87: 예천군 보문면 오암길 ***-** | D87: 이** | E87: 매연저감장치 부착 지원 | F87: 민간자본사업보조 | G87: 1종복합소형 2,992천원*1대 | I87: 3,273 | J87: 2,992 | K87: 281 | L87: 2,992 | M87: 2,992 | N87: 2,992
B88: 환경관리과 | C88: 예천군 풍양면 하풍리 **-** | D88: 김** | E88: 매연저감장치 부착 지원 | F88: 민간자본사업보조 | G88: 1종복합중형 4,770천원*1대 | I88: 5,248 | J88: 4,770 | K88: 478 | L88: 4,770 | M88: 4,770 | N88: 4,770
B89: 환경관리과 | C89: 예천군 풍양면 영풍로 ***-** | D89: 정** | E89: 매연저감장치 부착 지원 | F89: 민간자본사업보조 | G89: 1종복합소형 2,992천원*1대 | I89: 3,273 | J89: 2,992 | K89: 281 | L89: 2,992 | M89: 2,992 | N89: 2,992
B90: 환경관리과 | C90: 예천군 효자면 도촌길 ** | D90: 강** | E90: 매연저감장치 부착 지원 | F90: 민간자본사업보조 | G90: 1종복합중형 4,770천원*1대 | I90: 5,248 | J90: 4,770 | K90: 478 | L90: 4,770 | M90: 4,770 | N90: 4,770
B91: 환경관리과 | C91: 예천군 예천읍 맛고을길 ** | D91: 신** | E91: 매연저감장치 부착 지원 | F91: 민간자본사업보조 | G91: 1종복합소형 2,992천원*1대 | I91: 3,273 | J91: 2,992 | K91: 281 | L91: 2,992 | M91: 2,992 | N91: 2,992
B92: 환경관리과 | C92: 예천군 호명면 행복로 ***, ***동 ***호 | D92: 최** | E92: 매연저감장치 부착 지원 | F92: 민간자본사업보조 | G92: 1종복합중형 4,770천원*1대 | I92: 5,248 | J92: 4,770 | K92: 478 | L92: 4,770 | M92: 4,770 | N92: 4,770
B93: 환경관리과 | C93: 예천군 예천읍 대심*리 ***-** | D93: 황** | E93: 매연저감장치 부착 지원 | F93: 민간자본사업보조 | G93: 1종복합중형 4,770천원*1대 | I93: 5,248 | J93: 4,770 | K93: 478 | L93: 4,770 | M93: 4,770 | N93: 4,770
B94: 환경관리과 | C94: 예천군 예천읍 양궁로 ** 세아아파트 ***동 ***호 | D94: 석** | E94: 매연저감장치 부착 지원 | F94: 민간자본사업보조 | G94: 1종복합중형 4,770천원*1대 | I94: 5,248 | J94: 4,770 | K94: 478 | L94: 4,770 | M94: 4,770 | N94: 4,770
B95: 환경관리과 | C95: 예천군 호명면 새움*로 *, ***-****(아이파크) | D95: 김** | E95: 매연저감장치 부착 지원 | F95: 민간자본사업보조 | G95: 1종복합중형 4,770천원*1대 | I95: 5,248 | J95: 4,770 | K95: 478 | L95: 4,770 | M95: 4,770 | N95: 4,770
B96: 환경관리과 | C96: 예천군 예천읍 원고개길 ** | D96: 김** | E96: 매연저감장치 부착 지원 | F96: 민간자본사업보조 | G96: 1종복합중형 4,770천원*1대 | I96: 5,248 | J96: 4,770 | K96: 478 | L96: 4,770 | M96: 4,770 | N96: 4,770
B97: 환경관리과 | C97: 예천군 풍양면 풍지로 ***-** | D97: 유** | E97: 매연저감장치 부착 지원 | F97: 민간자본사업보조 | G97: 1종복합소형 2,992천원*1대 | I97: 3,273 | J97: 2,992 | K97: 281 | L97: 2,992 | M97: 2,992 | N97: 2,992
B98: 환경관리과 | C98: 예천군 감천면 충효로 **** | D98: 이** | E98: 노후 1톤 화물차량 lpg차 전환지원 | F98: 민간자본사업보조 | G98: 4,000천원*1대 | I98: 4,000 | J98: 4,000 | L98: 4,000 | M98: 4,000 | N98: 4,000
B99: 환경관리과 | C99: 예천군 호명면 오천리 ***-** | D99: 임** | E99: 노후 1톤 화물차량 lpg차 전환지원 | F99: 민간자본사업보조 | G99: 4,000천원*1대 | I99: 4,000 | J99: 4,000 | L99: 4,000 | M99: 4,000 | N99: 4,000
B100: 환경관리과 | C100: 예천군 예천읍 양궁로*** | D100: 박** | E100: 노후 1톤 화물차량 lpg차 전환지원 | F100: 민간자본사업보조 | G100: 4,000천원*1대 | I100: 4,000 | J100: 4,000 | L100: 4,000 | M100: 4,000 | N100: 4,000
B101: 환경관리과 | C101: 예천군 감천면 옥계천로 ***-** | D101: 변** | E101: 노후 1톤 화물차량 lpg차 전환지원 | F101: 민간자본사업보조 | G101: 4,000천원*1대 | I101: 4,000 | J101: 4,000 | L101: 4,000 | M101: 4,000 | N101: 4,000
B102: 환경관리과 | C102: 예천군 예천읍 대심*길 **-* 우창아파트 ***호 | D102: 박** | E102: 노후 1톤 화물차량 lpg차 전환지원 | F102: 민간자본사업보조 | G102: 4,000천원*1대 | I102: 4,000 | J102: 4,000 | L102: 4,000 | M102: 4,000 | N102: 4,000
B103: 환경관리과 | C103: 예천군 개포면 송담길 **-* | D103: 남** | E103: 노후 1톤 화물차량 lpg차 전환지원 | F103: 민간자본사업보조 | G103: 4,000천원*1대 | I103: 4,000 | J103: 4,000 | L103: 4,000 | M103: 4,000 | N103: 4,000
B104: 환경관리과 | C104: 예천군 예천읍 이미기길 **호 *층 | D104: 서** | E104: 노후 1톤 화물차량 lpg차 전환지원 | F104: 민간자본사업보조 | G104: 4,000천원*1대 | I104: 4,000 | J104: 4,000 | L104: 4,000 | M104: 4,000 | N104: 4,000
B105: 환경관리과 | C105: 예천군 용문면 하학길 ** | D105: 정** | E105: 노후 1톤 화물차량 lpg차 전환지원 | F105: 민간자본사업보조 | G105: 4,000천원*1대 | I105: 4,000 | J105: 4,000 | L105: 4,000 | M105: 4,000 | N105: 4,000
B106: 환경관리과 | C106: 예천군 효자면 석묘리길 ** | D106: 손** | E106: 노후 1톤 화물차량 lpg차 전환지원 | F106: 민간자본사업보조 | G106: 4,000천원*1대 | I106: 4,000 | J106: 4,000 | L106: 4,000 | M106: 4,000 | N106: 4,000
B107: 환경관리과 | C107: 예천군 은풍면 은풍준시길 **-* | D107: 김** | E107: 노후 1톤 화물차량 lpg차 전환지원 | F107: 민간자본사업보조 | G107: 4,000천원*1대 | I107: 4,000 | J107: 4,000 | L107: 4,000 | M107: 4,000 | N107: 4,000
B108: 환경관리과 | C108: 예천군 감천면 포리*길 * | D108: 김** | E108: 노후 1톤 화물차량 lpg차 전환지원 | F108: 민간자본사업보조 | G108: 4,000천원*1대 | I108: 4,000 | J108: 4,000 | L108: 4,000 | M108: 4,000 | N108: 4,000
B109: 환경관리과 | C109: 예천군 예천읍 대심*길 ** | D109: 송** | E109: 노후 1톤 화물차량 lpg차 전환지원 | F109: 민간자본사업보조 | G109: 4,000천원*1대 | I109: 4,000 | J109: 4,000 | L109: 4,000 | M109: 4,000 | N109: 4,000
B110: 환경관리과 | C110: 예천군 호명면 서당마길 ** | D110: 김** | E110: 노후 1톤 화물차량 lpg차 전환지원 | F110: 민간자본사업보조 | G110: 4,000천원*1대 | I110: 4,000 | J110: 4,000 | L110: 4,000 | M110: 4,000 | N110: 4,000
B111: 환경관리과 | C111: 예천군 예천읍 도효자로 ***-** | D111: 천** | E111: 노후 1톤 화물차량 lpg차 전환지원 | F111: 민간자본사업보조 | G111: 4,000천원*1대 | I111: 4,000 | J111: 4,000 | L111: 4,000 | M111: 4,000 | N111: 4,000
B112: 환경관리과 | C112: 예천군 호명면 산합리 **** 아이유쉘센텀 ***동 ****호 | D112: 라** | E112: 노후 1톤 화물차량 lpg차 전환지원 | F112: 민간자본사업보조 | G112: 4,000천원*1대 | I112: 4,000 | J112: 4,000 | L112: 4,000 | M112: 4,000 | N112: 4,000
B113: 환경관리과 | C113: 예천군 감천면 덕율*길 **-* | D113: 최** | E113: 노후 1톤 화물차량 lpg차 전환지원 | F113: 민간자본사업보조 | G113: 4,000천원*1대 | I113: 4,000 | J113: 4,000 | L113: 4,000 | M113: 4,000 | N113: 4,000
B114: 환경관리과 | C114: 예천군 호명면 ***, 호반*차 ***동 ***호 | D114: 조** | E114: 노후 1톤 화물차량 lpg차 전환지원 | F114: 민간자본사업보조 | G114: 4,000천원*1대 | I114: 4,000 | J114: 4,000 | L114: 4,000 | M114: 4,000 | N114: 4,000
B115: 환경관리과 | C115: 예천군 풍양면 공덕길 *** | D115: 김** | E115: 노후 1톤 화물차량 lpg차 전환지원 | F115: 민간자본사업보조 | G115: 4,000천원*1대 | I115: 4,000 | J115: 4,000 | L115: 4,000 | M115: 4,000 | N115: 4,000
B116: 환경관리과 | C116: 예천군 효자면 도촌길 *** | D116: 이** | E116: 노후 1톤 화물차량 lpg차 전환지원 | F116: 민간자본사업보조 | G116: 4,000천원*1대 | I116: 4,000 | J116: 4,000 | L116: 4,000 | M116: 4,000 | N116: 4,000
B117: 환경관리과 | C117: 예천군 개포면 원두골길 ** | D117: 이** | E117: 노후 1톤 화물차량 lpg차 전환지원 | F117: 민간자본사업보조 | G117: 4,000천원*1대 | I117: 4,000 | J117: 4,000 | L117: 4,000 | M117: 4,000 | N117: 4,000
B118: 환경관리과 예비자 | C118: 보문면 문수로 ***-** | D118: 김** | E118: 매연저감장치 부착 지원 | F118: 민간자본사업보조
B119: 환경관리과 예비자 | C119: 지보면 오송길 *** | D119: 전** | E119: 매연저감장치 부착 지원 | F119: 민간자본사업보조
B120: 환경관리과 예비자 | C120: 효자면 백석길 *** | D120: 장** | E120: 매연저감장치 부착 지원 | F120: 민간자본사업보조
B121: 환경관리과 예비자 | C121: 지보면 도장리 ***-* | D121: 정** | E121: 매연저감장치 부착 지원 | F121: 민간자본사업보조
B122: 환경관리과 예비자 | C122: 감천면 관현*길 **-* 고실 | D122: 정** | E122: 매연저감장치 부착 지원 | F122: 민간자본사업보조
B123: 환경관리과 예비자 | C123: 용문면 직동길 ***-** | D123: 신** | E123: 매연저감장치 부착 지원 | F123: 민간자본사업보조
B124: 환경관리과 예비자 | C124: 효자면 구도실길 **-* | D124: 남** | E124: 매연저감장치 부착 지원 | F124: 민간자본사업보조
B125: 환경관리과 예비자 | C125: 호명면 행복로 *** 동일스위트 *** ****호 | D125: 정** | E125: 매연저감장치 부착 지원 | F125: 민간자본사업보조
B126: 환경관리과 예비자 | C126: 유천면 고림*길 ** | D126: 최** | E126: 매연저감장치 부착 지원 | F126: 민간자본사업보조
B127: 환경관리과 예비자 | C127: 풍양면 상풍로 ****-** | D127: 김** | E127: 매연저감장치 부착 지원 | F127: 민간자본사업보조
B128: 환경관리과 예비자 | C128: 풍양면 청운길 ** | D128: 최** | E128: 매연저감장치 부착 지원 | F128: 민간자본사업보조
B129: 환경관리과 예비자 | C129: 용궁면 적계*길 ***-* | D129: 양** | E129: 매연저감장치 부착 지원 | F129: 민간자본사업보조
B130: 환경관리과 예비자 | C130: 감천면 덕율*길 *** | D130: 김** | E130: 매연저감장치 부착 지원 | F130: 민간자본사업보조
B131: 환경관리과 예비자 | C131: 감천면 충효로 **** | D131: 박** | E131: 매연저감장치 부착 지원 | F131: 민간자본사업보조
B132: 환경관리과 예비자 | C132: 예천읍 시장로 ***-*, 노블레스빌 c동 ***호 | D132: 장** | E132: 매연저감장치 부착 지원 | F132: 민간자본사업보조
B133: 환경관리과 예비자 | C133: 호명면 한어길 ***-* | D133: 최** | E133: 매연저감장치 부착 지원 | F133: 민간자본사업보조
B134: 환경관리과 예비자 | C134: 예천읍 중앙로 *-* | D134: 권** | E134: 매연저감장치 부착 지원 | F134: 민간자본사업보조
B135: 환경관리과 예비자 | C135: 은풍면 어림성길 *** | D135: 남** | E135: 매연저감장치 부착 지원 | F135: 민간자본사업보조
B136: 환경관리과 예비자 | C136: 감쳔면 덕율*길 ** | D136: 조** | E136: 매연저감장치 부착 지원 | F136: 민간자본사업보조
B137: 환경관리과 예비자 | C137: 용궁면 황목근길 ***-** | D137: 엄** | E137: 매연저감장치 부착 지원 | F137: 민간자본사업보조
B138: 환경관리과 예비자 | C138: 예천읍 광대원길 **-* | D138: 배** | E138: 매연저감장치 부착 지원 | F138: 민간자본사업보조
B139: 환경관리과 예비자 | C139: 은풍면 은풍준시길 ** | D139: 짠*** | E139: 매연저감장치 부착 지원 | F139: 민간자본사업보조
B140: 환경관리과 예비자 | C140: 예천읍 맛고을길 ** | D140: (*)신***** | E140: 매연저감장치 부착 지원 | F140: 민간자본사업보조
B141: 환경관리과 예비자 | C141: 안동시 풍천면 신평풍천길 ****-* | D141: 안** | E141: 매연저감장치 부착 지원 | F141: 민간자본사업보조
B142: 환경관리과 예비자 | C142: 풍양면 낙상*길 ** | D142: 정** | E142: 매연저감장치 부착 지원 | F142: 민간자본사업보조
B143: 환경관리과 예비자 | C143: 보문면 문래실길 ** | D143: 김** | E143: 매연저감장치 부착 지원 | F143: 민간자본사업보조
B144: 환경관리과 예비자 | C144: 예천읍 군청앞길 * | D144: 이** | E144: 매연저감장치 부착 지원 | F144: 민간자본사업보조
B145: 환경관리과 예비자 | C145: 지보면 지보로 ***-* | D145: 김** | E145: 매연저감장치 부착 지원 | F145: 민간자본사업보조
B146: 환경관리과 예비자 | C146: 용궁면 대은길 **-* | D146: 윤** | E146: 매연저감장치 부착 지원 | F146: 민간자본사업보조
B147: 환경관리과 예비자 | C147: 호명면 행복로 *** | D147: 최** | E147: 매연저감장치 부착 지원 | F147: 민간자본사업보조
B148: 환경관리과 예비자 | C148: 보문면 산성길 | D148: 안** | E148: 매연저감장치 부착 지원 | F148: 민간자본사업보조
B149: 환경관리과 예비자 | C149: 예천읍 왕신길 ***-* | D149: 임** | E149: 매연저감장치 부착 지원 | F149: 민간자본사업보조
B150: 환경관리과 예비자 | C150: 지보면 지보리 *** | D150: 조** | E150: 매연저감장치 부착 지원 | F150: 민간자본사업보조
B151: 환경관리과 예비자 | C151: 풍양면 풍지로 ** | D151: 강** | E151: 매연저감장치 부착 지원 | F151: 민간자본사업보조
B152: 환경관리과 예비자 | C152: 예천읍 노상리길 ** | D152: 박** | E152: 매연저감장치 부착 지원 | F152: 민간자본사업보조
B153: 환경관리과 예비자 | C153: 지보면소화*길** | D153: 조** | E153: 매연저감장치 부착 지원 | F153: 민간자본사업보조
B154: 환경관리과 예비자 | C154: 보문면 수락대로 ***-* | D154: 강** | E154: 매연저감장치 부착 지원 | F154: 민간자본사업보조
B155: 환경관리과 예비자 | C155: 호명면 검무로 **, ***동 ***호 | D155: 서** | E155: 매연저감장치 부착 지원 | F155: 민간자본사업보조
B156: 환경관리과 예비자 | C156: 예천읍 상설시장 *길 ** | D156: 김** | E156: 매연저감장치 부착 지원 | F156: 민간자본사업보조
B157: 환경관리과 예비자 | C157: 예천읍 갈구*길 ** | D157: 정** | E157: 매연저감장치 부착 지원 | F157: 민간자본사업보조
B158: 환경관리과 예비자 | C158: 감천면 마촌길 ***-* | D158: 석** | E158: 매연저감장치 부착 지원 | F158: 민간자본사업보조
B159: 환경관리과 예비자 | C159: 지보면 오송길 **-** | D159: 이** | E159: 매연저감장치 부착 지원 | F159: 민간자본사업보조
B160: 환경관리과 예비자 | C160: 예천읍 군청길 **-** | D160: 김** | E160: 매연저감장치 부착 지원 | F160: 민간자본사업보조
B161: 환경관리과 예비자 | C161: 예천읍 봉덕로 ** ***-**** | D161: 전** | E161: 매연저감장치 부착 지원 | F161: 민간자본사업보조
B162: 환경관리과 예비자 | C162: 보문면 편달길 **-* | D162: 안** | E162: 매연저감장치 부착 지원 | F162: 민간자본사업보조
B163: 환경관리과 예비자 | C163: 은풍면 어림성길 ***-* | D163: 이** | E163: 매연저감장치 부착 지원 | F163: 민간자본사업보조
B164: 환경관리과 예비자 | C164: 풍양면 덕암로 ****-** | D164: 장** | E164: 매연저감장치 부착 지원 | F164: 민간자본사업보조
B165: 환경관리과 예비자 | C165: 풍양면 삼탄길 ** | D165: 윤** | E165: 매연저감장치 부착 지원 | F165: 민간자본사업보조
B166: 환경관리과 예비자 | C166: 용궁면 항골길** | D166: 이** | E166: 매연저감장치 부착 지원 | F166: 민간자본사업보조
B167: 환경관리과 예비자 | C167: 용궁면 영궁로 **-** | D167: 김** | E167: 매연저감장치 부착 지원 | F167: 민간자본사업보조
B168: 환경관리과 예비자 | C168: 호명면 양지로 ** | D168: 최** | E168: 매연저감장치 부착 지원 | F168: 민간자본사업보조
B169: 환경관리과 예비자 | C169: 보문면 독죽골길 **-** | D169: 최** | E169: 매연저감장치 부착 지원 | F169: 민간자본사업보조
B170: 환경관리과 예비자 | C170: 예천읍 효자로 *** | D170: 정** | E170: 매연저감장치 부착 지원 | F170: 민간자본사업보조
B171: 환경관리과 예비자 | C171: 용문면 재달길 ** | D171: 백** | E171: 매연저감장치 부착 지원 | F171: 민간자본사업보조
B172: 환경관리과 예비자 | C172: 풍양면 공덕길 ***-* | D172: 김** | E172: 매연저감장치 부착 지원 | F172: 민간자본사업보조
B173: 환경관리과 예비자 | C173: 호명면 종산길 *** | D173: 박** | E173: 매연저감장치 부착 지원 | F173: 민간자본사업보조
B174: 환경관리과 예비자 | C174: 용문경천로 **** 아이스리버 나동 ***호 | D174: 남** | E174: 매연저감장치 부착 지원 | F174: 민간자본사업보조
B175: 환경관리과 예비자 | C175: 유천면 예성로 *** | D175: 장** | E175: 매연저감장치 부착 지원 | F175: 민간자본사업보조
B176: 환경관리과 예비자 | C176: 용문면 직동길 ***-** | D176: 강** | E176: 매연저감장치 부착 지원 | F176: 민간자본사업보조
B177: 환경관리과 예비자 | C177: 풍양면 상풍로 ****-** | D177: 이** | E177: 매연저감장치 부착 지원 | F177: 민간자본사업보조
B178: 환경관리과 예비자 | C178: 용문면 큰맛질길 **-* | D178: 박** | E178: 매연저감장치 부착 지원 | F178: 민간자본사업보조
B179: 환경관리과 예비자 | C179: 예천읍 중앙로 **-* ***호 | D179: 김** | E179: 매연저감장치 부착 지원 | F179: 민간자본사업보조
B180: 환경관리과 예비자 | C180: 호명면 인포길 **-* | D180: 이** | E180: 매연저감장치 부착 지원 | F180: 민간자본사업보조
B181: 환경관리과 예비자 | C181: 호명면 행복로 *** 우방아이유쉘*차 *** *** | D181: 이** | E181: 매연저감장치 부착 지원 | F181: 민간자본사업보조
B182: 환경관리과 예비자 | C182: 풍양면 하풍길 ** | D182: 진** | E182: 매연저감장치 부착 지원 | F182: 민간자본사업보조
B183: 환경관리과 예비자 | C183: 예천읍 중앙로 **-* | D183: 경*** ******* | E183: 매연저감장치 부착 지원 | F183: 민간자본사업보조
B184: 환경관리과 예비자 | C184: 용궁면 용개로 ***-* | D184: 이** | E184: 매연저감장치 부착 지원 | F184: 민간자본사업보조
B185: 환경관리과 예비자 | C185: 풍양면 낙상*길 **-** | D185: 정** | E185: 매연저감장치 부착 지원 | F185: 민간자본사업보조
B186: 환경관리과 예비자 | C186: 풍양면 우망리 *** | D186: 이** | E186: 매연저감장치 부착 지원 | F186: 민간자본사업보조
B187: 환경관리과 예비자 | C187: 지보면 어신*길 **-** | D187: 김** | E187: 매연저감장치 부착 지원 | F187: 민간자본사업보조
B188: 환경관리과 예비자 | C188: 풍양면 상풍로 ****-** | D188: 김** | E188: 매연저감장치 부착 지원 | F188: 민간자본사업보조
B189: 환경관리과 예비자 | C189: 호명면 새움*로 * 아이파크 ***-**** | D189: 김** | E189: 매연저감장치 부착 지원 | F189: 민간자본사업보조
B190: 환경관리과 예비자 | C190: 은풍면 한감길 ***-** | D190: 박** | E190: 매연저감장치 부착 지원 | F190: 민간자본사업보조
B191: 환경관리과 예비자 | C191: 예천읍 대심*길 **-** 동부맨션*차 ***호 | D191: 김**, 이** | E191: 매연저감장치 부착 지원 | F191: 민간자본사업보조
B192: 환경관리과 예비자 | C192: 풍양면 낙상*길 **-** | D192: 손** | E192: 매연저감장치 부착 지원 | F192: 민간자본사업보조
B193: 환경관리과 예비자 | C193: 예천읍 남부초등길 ***-(삼익맨션 ***호) | D193: 박** | E193: 매연저감장치 부착 지원 | F193: 민간자본사업보조
B194: 환경관리과 예비자 | C194: 풍양면 풍지로 ***-* | D194: 문** | E194: 매연저감장치 부착 지원 | F194: 민간자본사업보조
B195: 환경관리과 예비자 | C195: 예천읍 봉덕로 ** 주공아파트 ***동 ***호 | D195: 박** | E195: 매연저감장치 부착 지원 | F195: 민간자본사업보조
B196: 환경관리과 예비자 | C196: 지보면 마전*길 *** | D196: 현** | E196: 매연저감장치 부착 지원 | F196: 민간자본사업보조
B197: 환경관리과 예비자 | C197: 풍양면 풍지로 ***-** | D197: 유** | E197: 매연저감장치 부착 지원 | F197: 민간자본사업보조
B198: 환경관리과 예비자 | C198: 지보면 어신 *길 * | D198: 이** | E198: 노후 1톤 화물차량 lpg차 전환지원 | F198: 민간자본사업보조
B199: 환경관리과 예비자 | C199: 호명면 양지로 **, 호반*차 ***동 ***호 | D199: 우** | E199: 노후 1톤 화물차량 lpg차 전환지원 | F199: 민간자본사업보조
B200: 환경관리과 예비자 | C200: 호명면 설늠*길 **-* | D200: 김** | E200: 노후 1톤 화물차량 lpg차 전환지원 | F200: 민간자본사업보조
... 3020 more rows
